bitfinex/quotes_BTCUSD_20251217
["timestamp","ask_amount","ask_price","bid_price","bid_amount"]
[1765998013182,0.04278,85951.0,85913.0,1.19958]
[1765998013482,0.04091,85946.0,85911.0,1.68e-06]
[1765998013619,0.05001839,85945.0,85911.0,1.68e-06]
[1765998013825,0.12287,85933.0,85911.0,1.68e-06]
[1765998014082,0.12287,85930.0,85911.0,1.68e-06]
[1765998014266,0.0907,85946.0,85911.0,1.68e-06]
[1765998014267,0.0186,85935.0,85911.0,1.68e-06]
[1765998014499,0.12287,85936.0,85911.0,1.68e-06]
[1765998014706,0.0907,85935.0,85911.0,1.68e-06]
[1765998015066,0.04091,85930.0,85911.0,1.68e-06]
[1765998015584,0.04091,85930.0,85872.0,0.23290283]
[1765998015585,0.04091,85926.0,85888.0,43.1306301]
[1765998015806,0.04091,85926.0,85889.0,0.04218632]
[1765998016012,0.0907,85929.0,85889.0,0.04218632]
[1765998016013,0.04091,85924.0,85891.0,0.4778]
[1765998016185,0.04091,85924.0,85891.0,1.19958]
[1765998016366,0.0186,85925.0,85891.0,0.72178]
[1765998016568,0.04091,85935.0,85891.0,0.72178]
[1765998016769,0.04091,85930.0,85896.0,0.4778]
[1765998017121,0.21357,85931.0,85905.0,0.72178]
[1765998017294,0.21357,85931.0,85907.0,1.19958]
[1765998017504,0.0907,85931.0,85909.0,0.72178]
[1765998017909,0.0907,85933.0,85909.0,0.72178]
[1765998018278,0.0907,85933.0,85908.0,0.0186]
[1765998018279,0.0907,85933.0,85911.0,0.72178]
[1765998018474,0.0907,85933.0,85913.0,1.19958]
[1765998018838,0.08386911,85955.0,85917.0,0.72178]
[1765998018839,0.01825732,85950.0,85917.0,0.72178]
[1765998019038,0.00161287,85955.0,85930.0,0.72178]
[1765998019246,0.00161287,85955.0,85937.0,0.4778]
[1765998019452,0.00161287,85955.0,85943.0,0.4778]
[1765998019661,0.0186,85975.0,85944.0,0.4964]
[1765998020071,0.0907,85967.0,85944.0,0.0186]
[1765998020271,0.0090957,85961.0,85944.0,0.0186]
[1765998020475,0.0907,85967.0,85944.0,0.0186]
[1765998020780,0.12287,85983.0,85950.0,0.72178]
[1765998020983,0.12287,85983.0,85956.0,0.72178]
[1765998021095,0.0907,85982.0,85959.0,0.72178]
[1765998021301,0.12313,85992.0,85964.0,0.4778]
[1765998021503,0.06157678,85993.0,85960.0,0.0186]
[1765998021504,0.12313,85988.0,85960.0,0.0186]
[1765998021726,0.17087678,85993.0,85936.0,0.05001839]
[1765998021958,0.00183904,85961.0,85937.0,0.0186]
[1765998022170,0.00183904,85961.0,85928.0,0.01396518]
[1765998022171,0.0907,85965.0,85946.0,0.72178]
[1765998022375,0.0907,85965.0,85949.0,0.4778]
[1765998023023,0.16404,85980.0,85949.0,0.4778]
[1765998023373,0.16404,85980.0,85941.0,0.07450177]
[1765998023374,0.04091,85979.0,85950.0,0.0186]
[1765998023608,0.12313,85972.0,85943.0,0.0186]
[1765998023822,0.12313,85971.0,85943.0,0.0186]
[1765998023959,0.0907,85969.0,85943.0,0.0186]
[1765998024161,0.12313,85967.0,85943.0,0.0186]
[1765998024362,0.04091,85966.0,85943.0,0.0186]
[1765998024574,0.0907,85965.0,85943.0,0.0186]
[1765998024776,0.09231287,85965.0,85944.0,0.72178]
[1765998024977,0.09231287,85965.0,85950.0,0.72178]
[1765998025205,2.87e-06,85965.0,85954.0,0.72178]
[1765998025554,2.87e-06,85965.0,85958.0,0.4778]
[1765998025769,2.87e-06,85965.0,85957.0,0.72178]
[1765998025944,2.87e-06,85965.0,85957.0,0.00161]
[1765998027548,2.87e-06,85965.0,85944.0,1.19958]
[1765998027777,2.87e-06,85965.0,85941.0,0.0186]
[1765998027992,2.87e-06,85965.0,85937.0,0.72178]
[1765998027993,0.0907,85961.0,85937.0,0.72178]
[1765998028134,0.0907,85961.0,85933.0,0.4778]
[1765998028135,0.0907,85955.0,85931.0,0.00161]
[1765998028343,0.0907,85951.0,85931.0,0.00161]
[1765998028682,0.21237,85949.0,85931.0,0.00161]
[1765998029469,0.0186,85950.0,85933.0,0.4778]
[1765998029626,0.0186,85950.0,85933.0,0.47941]
[1765998030240,0.0186,85958.0,85937.0,0.4778]
[1765998030406,0.0186,85958.0,85937.0,1.20119]
[1765998030608,0.0186,85958.0,85937.0,0.00161]
[1765998030785,0.1093,85958.0,85937.0,0.00161]
[1765998030988,0.0907,85956.0,85937.0,0.00161]
[1765998031558,0.0907,85953.0,85916.0,0.4778]
[1765998031761,0.0186,85958.0,85916.0,0.00161]
[1765998031762,0.0907,85949.0,85916.0,0.00161]
[1765998031937,0.02448,85952.0,85916.0,0.00161]
[1765998032237,0.21237,85945.0,85916.0,0.00161]
[1765998032416,0.21237,85943.0,85916.0,0.00161]
[1765998032755,0.0907,85942.0,85916.0,0.00161]
[1765998032968,0.31633486,85942.0,85916.0,0.00161]
[1765998034124,0.02448,85941.0,85916.0,0.00161]
[1765998034324,0.01326486,85942.0,85916.0,0.00161]
[1765998034553,0.04935992,85944.0,85911.0,0.00025709]
[1765998034554,0.0907,85939.0,85911.0,0.00025709]
[1765998034763,0.0907,85930.0,85896.0,0.0186]
[1765998035021,0.0907,85943.0,85896.0,0.0186]
[1765998035022,0.21052,85927.0,85896.0,0.0186]
[1765998035274,0.02448,85928.0,85896.0,0.0186]
[1765998035498,0.0907,85924.0,85896.0,0.0186]
[1765998036147,0.0907,85924.0,85905.0,0.4778]
[1765998036356,0.0186,85933.0,85910.0,0.72178]
[1765998036561,0.0186,85933.0,85913.0,0.4778]
[1765998036773,0.0186,85933.0,85904.0,0.4778]
[1765998036985,0.02448,85940.0,85896.0,0.0186]
[1765998036986,0.30031,85934.0,85896.0,0.0186]
[1765998037203,0.31891,85934.0,85902.0,0.72178]
[1765998037423,0.31891,85934.0,85906.0,0.72178]
[1765998037630,0.31891,85934.0,85897.0,0.05001839]
[1765998037876,0.0186,85934.0,85902.0,0.07450177]
[1765998038087,0.0186,85933.0,85907.0,0.4778]
[1765998038308,0.0186,85933.0,85912.0,0.72178]
[1765998038482,0.0186,85933.0,85913.0,0.4778]
[1765998039468,0.0907,85931.0,85903.0,0.4778]
[1765998039668,0.09231287,85931.0,85905.0,0.4778]
[1765998039893,0.09231287,85931.0,85906.0,1.19958]
[1765998040054,0.03075992,85948.0,85913.0,0.72178]
[1765998040254,0.30031,85950.0,85918.0,0.4778]
[1765998040498,0.03497789,85958.0,85924.0,0.4778]
[1765998040499,0.0186,85955.0,85924.0,0.4778]
[1765998040700,0.0186,85955.0,85924.0,0.00161]
[1765998040701,0.02448,85953.0,85924.0,0.00161]
[1765998040899,0.02448,85947.0,85924.0,0.00161]
[1765998041103,0.0186,85955.0,85924.0,0.00161]
[1765998041104,0.02448,85941.0,85924.0,0.00161]
[1765998041301,0.3917,85940.0,85924.0,0.00161]
[1765998042247,0.4824,85939.0,85924.0,0.00161]
[1765998043341,0.3917,85936.0,85899.0,1.24989]
[1765998043547,0.3917,85936.0,85898.0,0.0186]
[1765998043548,0.02448,85935.0,85902.0,0.51373]
[1765998043700,0.03075992,85937.0,85902.0,0.51534]
[1765998043899,0.0907,85934.0,85902.0,0.51534]
[1765998044101,0.3917,85931.0,85902.0,0.51534]
[1765998044365,0.0186,85938.0,85908.0,0.73616]
[1765998044671,0.0186,85948.0,85917.0,0.51373]
[1765998044815,0.0186,85948.0,85922.0,0.73616]
[1765998045027,0.3917,85955.0,85929.0,0.51373]
[1765998045307,0.1093,85954.0,85932.0,0.51373]
[1765998045525,0.03075992,85966.0,85939.0,0.73616]
[1765998045729,0.0186,85969.0,85946.0,0.51373]
[1765998045935,0.0186,85969.0,85951.0,0.73616]
[1765998046114,0.0186,85969.0,85946.0,0.00161]
[1765998046323,0.0907,85968.0,85946.0,0.00161]
[1765998046543,0.0907,85966.0,85946.0,0.00161]
[1765998046748,0.0907,85964.0,85929.0,0.51373]
[1765998046944,0.0186,85969.0,85929.0,0.00161]
[1765998046945,0.0907,85954.0,85929.0,0.00161]
[1765998047082,0.0907,85952.0,85929.0,0.00161]
[1765998048177,0.1093,85953.0,85929.0,0.00161]
[1765998048902,0.1093,85953.0,85930.0,0.73616]
[1765998049107,0.1093,85953.0,85931.0,0.51373]
[1765998049349,0.0186,85953.0,85933.0,0.51373]
[1765998049545,0.0186,85953.0,85933.0,0.51534]
[1765998049746,0.0186,85953.0,85934.0,0.73616]
[1765998049951,0.0186,85953.0,85935.0,0.51373]
[1765998050352,0.0186,85953.0,85935.0,0.51534]
[1765998050567,0.0186,85953.0,85936.0,1.24989]
[1765998050797,0.0186,85953.0,85936.0,1.2515]
[1765998051200,0.0186,85952.0,85916.0,0.0186]
[1765998051400,1.03075992,85947.0,85917.0,0.73616]
[1765998051658,0.02448,85944.0,85917.0,0.73777]
[1765998052077,0.02448,85942.0,85917.0,0.00161]
[1765998052231,0.03075992,85936.0,85917.0,0.00161]
[1765998052554,0.02448,85937.0,85917.0,0.00161]
[1765998052555,0.04935992,85935.0,85917.0,0.00161]
[1765998052772,0.03075992,85934.0,85917.0,0.00161]
[1765998053548,0.02287,85931.0,85903.0,0.0186]
[1765998053755,0.33373,85930.0,85903.0,0.0186]
[1765998054145,0.0907,85929.0,85904.0,0.75012908]
[1765998054356,0.03075992,85936.0,85910.0,0.73616]
[1765998054555,0.12145992,85939.0,85913.0,0.51373]
[1765998054749,0.0907,85939.0,85913.0,0.51373]
[1765998054950,0.0907,85939.0,85919.0,0.51373]
[1765998055230,0.0907,85939.0,85926.0,0.73616]
[1765998055452,0.12145992,85950.0,85927.0,1.24989]
[1765998055765,0.12145992,85950.0,85897.0,0.01164185]
[1765998055766,0.03075992,85947.0,85917.0,0.51373]
[1765998055998,0.0907,85940.0,85913.0,0.0186]
[1765998056244,0.0907,85937.0,85914.0,0.0186]
[1765998057134,0.09231287,85937.0,85914.0,0.0186]
[1765998057311,0.42443,85930.0,85908.0,0.0186]
[1765998057542,0.02287,85929.0,85908.0,0.0186]
[1765998057722,0.02287,85929.0,85896.0,0.51373]
[1765998057723,0.0907,85926.0,85899.0,0.73616]
[1765998057925,0.0907,85926.0,85900.0,0.53233]
[1765998058124,0.0907,85926.0,85900.0,0.0186]
[1765998058429,0.0907,85926.0,85901.0,0.51373]
[1765998058579,0.09231287,85926.0,85901.0,0.51373]
[1765998058979,0.09231287,85926.0,85901.0,0.73616]
[1765998059230,0.09231287,85926.0,85903.0,0.73616]
[1765998059398,0.09231287,85926.0,85905.0,1.24989]
[1765998060700,0.09231287,85926.0,85894.0,0.51373]
[1765998060701,0.0907,85923.0,85894.0,0.51373]
[1765998060878,0.33373,85919.0,85888.0,43.1306301]
[1765998061086,0.0907,85916.0,85888.0,43.1306301]
[1765998061308,0.0907,85907.0,85888.0,43.1306301]
[1765998061504,0.0907,85902.0,85888.0,43.1306301]
[1765998061713,0.12145992,85902.0,85888.0,43.1077601]
[1765998061920,0.0907,85897.0,85888.0,43.1077601]
[1765998062784,0.02194,85896.0,85888.0,42.34349092]
[1765998063064,0.02194,85896.0,85888.0,42.33849092]
[1765998063065,0.00334,85895.0,85888.0,42.33849092]
[1765998063261,0.03409992,85907.0,85889.0,0.04218632]
[1765998063466,0.03409992,85907.0,85888.0,42.33739092]
[1765998063467,0.0186,85902.0,85888.0,42.33739092]
[1765998063673,0.00334,85907.0,85888.0,42.33739092]
[1765998063890,0.00161287,85926.0,85888.0,42.33739092]
[1765998063891,0.0186,85910.0,85888.0,42.33739092]
[1765998064111,0.00334,85909.0,85888.0,42.33739092]
[1765998064362,0.04935992,85910.0,85888.0,42.33039092]
[1765998064363,0.00334,85907.0,85888.0,42.33039092]
[1765998064577,0.03075992,85901.0,85888.0,42.32329092]
[1765998064771,0.04101783,85917.0,85892.0,0.51373]
[1765998064981,0.04101783,85917.0,85889.0,0.0186]
[1765998064982,0.06157678,85949.0,85904.0,0.0907]
[1765998065204,0.03498736,85937.0,85907.0,0.0907]
[1765998065400,0.04936287,85957.0,85911.0,0.73616]
[1765998065603,0.03497814,85953.0,85917.0,0.73616]
[1765998065814,0.04394,85949.0,85919.0,0.73616]
[1765998066015,0.02915,85945.0,85919.0,0.73616]
[1765998066160,0.02915,85945.0,85907.0,0.51373]
[1765998066161,0.04394,85940.0,85907.0,0.51373]
[1765998066363,0.04394,85940.0,85906.0,0.73616]
[1765998066364,0.02915,85935.0,85906.0,0.73616]
[1765998066563,0.02915,85932.0,85907.0,0.06078632]
[1765998066764,0.04394,85930.0,85907.0,0.0186]
[1765998066991,0.04394,85929.0,85907.0,0.0186]
[1765998067189,0.04555287,85929.0,85907.0,0.0186]
[1765998067654,0.04555287,85929.0,85907.0,0.53233]
[1765998067655,0.00161287,85929.0,85907.0,0.53233]
[1765998067849,0.00161287,85929.0,85910.0,0.51373]
[1765998068873,0.02915,85927.0,85887.0,0.51373]
[1765998069106,2.0186,85928.0,85881.0,0.73616]
[1765998069107,0.02915,85919.0,85882.0,0.0186]
[1765998069362,0.04394,85916.0,85882.0,0.0186]
[1765998069614,0.1093,85928.0,85889.0,0.04218632]
[1765998069615,0.04394,85914.0,85889.0,0.04218632]
[1765998069798,0.0186,85913.0,85882.0,0.0186]
[1765998069967,0.0907,85927.0,85882.0,0.0186]
[1765998069968,0.04394,85925.0,85891.0,0.69364]
[1765998070168,0.0186,85926.0,85897.0,0.69364]
[1765998070469,0.02915,85925.0,85886.0,0.48246]
[1765998070629,0.0186,85926.0,85886.0,0.48246]
[1765998070827,0.07309,85925.0,85886.0,0.48246]
[1765998071073,0.0186,85926.0,85886.0,0.48246]
[1765998071268,0.04394,85920.0,85889.0,0.49417]
[1765998071497,0.04394,85920.0,85882.0,0.0186]
[1765998071498,0.04394,85920.0,85895.0,0.49417]
[1765998071700,0.04394,85920.0,85898.0,0.49417]
[1765998071939,0.06157678,85937.0,85898.0,0.49417]
[1765998071940,0.11159517,85942.0,85898.0,0.49578287]
[1765998072117,0.05001839,85937.0,85900.0,0.49417]
[1765998072315,0.07962302,85937.0,85900.0,0.49578287]
[1765998072664,0.0186,85936.0,85900.0,0.49578287]
[1765998072895,2.0,85934.0,85900.0,0.49578287]
[1765998073831,0.0907,85933.0,85900.0,0.49578287]
[1765998074037,0.00044,85932.0,85904.0,0.49417]
[1765998074215,0.00044,85941.0,85910.0,0.49417]
[1765998074401,0.00044,85941.0,85916.0,0.49417]
[1765998074402,0.01904,85941.0,85916.0,0.49417]
[1765998074597,0.01904,85941.0,85916.0,1.19069287]
[1765998074803,0.00044,85937.0,85916.0,0.02021287]
[1765998076951,0.00044,85937.0,85916.0,0.00161287]
[1765998077520,0.00044,85937.0,85888.0,42.32434825]
[1765998077521,0.05001839,85937.0,85888.0,42.32434825]
[1765998077720,0.14071839,85915.0,85888.0,42.32334825]
[1765998077924,0.00044,85908.0,85888.0,42.32334825]
[1765998078130,0.00044,85904.0,85888.0,42.32234825]
[1765998078599,0.00044,85904.0,85889.0,0.0186]
[1765998078806,0.00044,85904.0,85888.0,42.23244977]
[1765998078942,0.14071839,85909.0,85888.0,42.01545281]
[1765998078943,0.01411584,85903.0,85888.0,42.01545281]
[1765998079144,0.14071839,85912.0,85888.0,42.01345281]
[1765998079339,0.00044,85911.0,85888.0,42.01245281]
[1765998079569,0.00044,85911.0,85888.0,42.01145281]
[1765998079743,0.00044,85911.0,85888.0,42.01045281]
[1765998079944,0.00044,85911.0,85888.0,42.00945281]
[1765998080198,0.00044,85909.0,85888.0,42.00945281]
[1765998080450,2.0,85918.0,85892.0,0.69491]
[1765998080634,0.00044,85920.0,85894.0,1.18908]
[1765998080779,0.00044,85920.0,85895.0,0.49417]
[1765998080984,0.00044,85920.0,85895.0,1.18908]
[1765998081419,2.0,85929.0,85895.0,1.18908]
[1765998081636,0.01826266,85914.0,85895.0,1.18908]
[1765998081828,2.0,85913.0,85888.0,42.00945281]
[1765998082028,2.0,85912.0,85888.0,42.00945281]
[1765998082215,0.00161287,85913.0,85890.0,0.69491]
[1765998082413,0.00161287,85913.0,85892.0,0.49417]
[1765998082647,0.00161287,85913.0,85893.0,0.0186]
[1765998083681,0.00161287,85913.0,85888.0,42.00945281]
[1765998083860,0.05886987,85912.0,85888.0,42.00145281]
[1765998084078,0.0907,85908.0,85888.0,41.66119859]
[1765998084210,0.0907,85906.0,85888.0,40.93589015]
[1765998084403,0.0907,85906.0,85888.0,40.92689015]
[1765998084404,0.0907,85902.0,85888.0,40.92689015]
[1765998084632,0.0907,85902.0,85888.0,40.91889015]
[1765998084893,0.15227678,85902.0,85888.0,40.91089015]
[1765998085022,0.0907,85902.0,85888.0,40.91079015]
[1765998085224,0.0907,85902.0,85889.0,1.20305152]
[1765998085421,0.0907,85902.0,85889.0,1.18908]
[1765998085629,0.06157678,85910.0,85889.0,1.18908]
[1765998085852,0.06318965,85910.0,85890.0,0.0186]
[1765998087463,0.06157678,85917.0,85894.0,0.69491]
[1765998087663,0.06157678,85923.0,85899.0,0.49417]
[1765998087867,0.00161287,85923.0,85898.0,0.69491]
[1765998088085,0.00161287,85923.0,85890.0,0.0186]
[1765998088086,0.00161287,85923.0,85901.0,1.18908]
[1765998088337,0.00161287,85923.0,85902.0,0.0186]
[1765998089459,0.06318965,85923.0,85903.0,0.0186]
[1765998089661,0.001,85922.0,85893.0,1.18808]
[1765998089976,0.001,85922.0,85894.0,0.0186]
[1765998089977,0.00641897,85921.0,85894.0,0.0186]
[1765998090195,0.001,85920.0,85888.0,40.91079015]
[1765998090396,0.06157678,85919.0,85888.0,40.91079015]
[1765998090600,0.06257678,85918.0,85889.0,0.0186]
[1765998090940,0.01826262,85914.0,85889.0,0.0186]
[1765998092095,0.01826262,85914.0,85890.0,0.0186]
[1765998092685,0.01826262,85914.0,85888.0,40.91079015]
[1765998092686,0.01826262,85914.0,85891.0,0.0186]
[1765998093090,0.01826262,85914.0,85888.0,41.40496015]
[1765998093091,0.06157678,85899.0,85888.0,40.90679015]
[1765998093407,0.14071839,85892.0,85888.0,40.81749015]
[1765998093740,1.14071839,85889.0,85888.0,40.43733593]
[1765998093952,1.14071839,85889.0,85888.0,40.42833593]
[1765998094077,1.14071839,85889.0,85888.0,39.98380824]
[1765998094279,1.17488813,85889.0,85888.0,39.76250055]
[1765998094482,1.17488813,85889.0,85888.0,38.23862811]
[1765998094483,1.20796147,85889.0,85888.0,38.23862811]
[1765998094750,1.32342225,85889.0,85888.0,38.0687315]
[1765998095110,1.32342225,85889.0,85888.0,37.4122632]
[1765998095241,1.34829933,85889.0,85888.0,36.78757354]
[1765998095456,1.34829933,85889.0,85888.0,36.20779236]
[1765998095669,1.40641717,85889.0,85888.0,35.86279274]
[1765998095868,1.34829933,85889.0,85888.0,35.39357537]
[1765998096077,1.34829933,85889.0,85888.0,35.29999766]
[1765998096272,1.34829933,85889.0,85888.0,35.29199766]
[1765998096581,1.34829933,85889.0,85888.0,35.28089766]
[1765998096830,1.40641717,85889.0,85888.0,34.23978682]
[1765998096990,1.40641717,85889.0,85888.0,33.77537023]
[1765998097186,1.52911717,85889.0,85888.0,32.67732396]
[1765998097386,1.52911717,85889.0,85888.0,32.21847001]
[1765998097585,1.29095639,85889.0,85888.0,31.43754712]
[1765998097791,1.29095639,85889.0,85888.0,31.43054712]
[1765998098012,1.37287995,85889.0,85888.0,31.42154712]
[1765998098220,1.29095639,85889.0,85888.0,31.39334712]
[1765998098443,1.34462116,85889.0,85888.0,31.2859538]
[1765998098655,1.34462116,85889.0,85888.0,31.2779538]
[1765998098908,1.34462116,85889.0,85888.0,31.2698538]
[1765998099122,1.34462116,85889.0,85888.0,31.18241286]
[1765998099295,1.34462116,85889.0,85888.0,31.17431286]
[1765998099500,1.32598116,85889.0,85888.0,31.16631286]
[1765998099694,1.29083914,85889.0,85888.0,31.08663854]
[1765998099897,1.3416068,85889.0,85888.0,30.9312899]
[1765998100097,1.3416068,85889.0,85888.0,30.7655531]
[1765998100275,1.3416068,85889.0,85888.0,30.7393531]
[1765998100484,1.3416068,85889.0,85888.0,30.05407264]
[1765998100708,1.40287709,85889.0,85888.0,29.58561116]
[1765998100984,1.40287709,85889.0,85888.0,29.04752244]
[1765998100985,1.3416068,85889.0,85888.0,29.04752244]
[1765998101186,1.3416068,85889.0,85888.0,28.58027734]
[1765998101387,1.3229668,85889.0,85888.0,28.4838328]
[1765998101607,1.3229668,85889.0,85888.0,28.4768328]
[1765998101608,1.30969749,85889.0,85888.0,28.4768328]
[1765998101808,1.30969749,85889.0,85888.0,28.4688328]
[1765998102129,1.33935543,85889.0,85888.0,28.3776328]
[1765998102341,1.33935543,85889.0,85888.0,28.3504328]
[1765998102506,1.33935543,85889.0,85888.0,28.31303286]
[1765998102688,1.32071543,85889.0,85888.0,28.30603286]
[1765998102888,1.32071543,85889.0,85888.0,28.29803286]
[1765998102889,1.21747623,85889.0,85888.0,28.29803286]
[1765998103107,1.21747623,85889.0,85888.0,28.22303286]
[1765998103308,1.21747623,85889.0,85888.0,28.03813897]
[1765998103309,1.26003722,85889.0,85888.0,28.03813897]
[1765998103511,1.16745784,85889.0,85888.0,28.03013897]
[1765998103696,1.22405784,85889.0,85888.0,28.02213897]
[1765998103895,1.22405784,85889.0,85888.0,28.01413897]
[1765998103896,1.35567856,85889.0,85888.0,28.01413897]
[1765998104121,1.31744654,85889.0,85888.0,27.92693897]
[1765998104323,1.35824884,85889.0,85888.0,27.23063153]
[1765998104538,1.31744654,85889.0,85888.0,27.22263153]
[1765998104742,1.31744654,85889.0,85888.0,27.15986869]
[1765998104915,1.31744654,85889.0,85888.0,27.15086869]
[1765998105115,1.29235111,85889.0,85888.0,27.14286869]
[1765998105478,1.29235111,85889.0,85888.0,27.11166869]
[1765998105609,1.39696958,85889.0,85888.0,27.08135565]
[1765998105816,1.31535503,85889.0,85888.0,26.65935769]
[1765998106019,1.34580868,85889.0,85888.0,26.52440774]
[1765998106219,1.34580868,85889.0,85888.0,26.39081509]
[1765998106422,1.28769084,85889.0,85888.0,25.93619409]
[1765998106621,1.28769084,85889.0,85888.0,25.82819409]
[1765998106824,1.34580868,85889.0,85888.0,25.71365314]
[1765998107023,1.34323723,85889.0,85888.0,20.5336074]
[1765998107237,1.34323723,85889.0,85888.0,20.5246074]
[1765998107417,1.32459723,85889.0,85888.0,20.5166074]
[1765998107634,1.32459723,85889.0,85888.0,19.46418942]
[1765998107843,1.32459723,85889.0,85888.0,19.43754942]
[1765998107844,1.27450682,85889.0,85888.0,19.43754942]
[1765998108068,1.26620476,85889.0,85888.0,19.42944942]
[1765998108283,1.51705533,85889.0,85888.0,12.63065123]
[1765998108520,1.54618349,85889.0,85888.0,11.84581935]
[1765998108709,1.48806565,85889.0,85888.0,10.52536988]
[1765998108925,1.18944692,85889.0,85888.0,10.52536988]
[1765998109141,1.18944692,85889.0,85888.0,10.19672935]
[1765998109359,1.27565505,85889.0,85888.0,9.62742113]
[1765998109565,1.27565505,85889.0,85888.0,9.39419439]
[1765998109832,1.18944692,85889.0,85888.0,9.39419439]
[1765998110476,1.18944692,85889.0,85888.0,9.33498001]
[1765998110701,1.18944692,85889.0,85888.0,9.21655125]
[1765998110919,1.18944692,85889.0,85888.0,8.58124352]
[1765998111120,1.2156725,85889.0,85888.0,8.36964939]
[1765998111543,1.18944692,85889.0,85888.0,8.36964939]
[1765998111773,1.18944692,85889.0,85888.0,2.16329153]
[1765998111774,1.2156725,85889.0,85888.0,2.16329153]
[1765998111993,1.24047248,85889.0,85888.0,1.95094585]
[1765998112197,1.27236474,85889.0,85888.0,1.87174585]
[1765998113029,1.18944692,85889.0,85888.0,1.87174585]
[1765998113238,0.98744813,85889.0,85888.0,1.85254585]
[1765998113436,0.98744813,85889.0,85888.0,1.07951458]
[1765998114102,0.98744813,85889.0,85888.0,0.98171458]
[1765998114352,0.96917325,85889.0,85888.0,0.39303457]
[1765998114640,0.96917325,85889.0,85888.0,0.37785563]
[1765998115243,1.05987325,85889.0,85888.0,0.37785563]
[1765998116417,1.04487325,85889.0,85888.0,0.37785563]
[1765998116638,1.04487325,85889.0,85888.0,0.31975778]
[1765998116816,1.06967323,85889.0,85888.0,0.29550272]
[1765998117154,1.04487325,85889.0,85888.0,0.29550272]
[1765998117500,0.05001839,85872.0,85867.0,0.01097599]
[1765998117651,0.14071839,85868.0,85867.0,0.01097599]
[1765998117853,0.00858,85857.0,85819.0,0.74661]
[1765998118209,0.25099999,85860.0,85820.0,0.01864]
[1765998118210,0.05001839,85849.0,85820.0,0.01864]
[1765998118406,0.87370121,85848.0,85820.0,0.00725511]
[1765998118607,0.87370121,85848.0,85820.0,0.75386511]
[1765998119276,0.05001839,85842.0,85810.0,4.43e-05]
[1765998119427,0.0907,85838.0,85811.0,0.76525]
[1765998119747,0.00858,85846.0,85811.0,0.76525]
[1765998119968,1.0,85843.0,85817.0,0.74661]
[1765998120172,1.0,85843.0,85811.0,0.01864]
[1765998120494,0.00099999,85850.0,85810.0,4.43e-05]
[1765998120495,0.05001839,85836.0,85812.0,0.01864]
[1765998120693,0.06118351,85856.0,85816.0,0.50142]
[1765998120843,0.06118351,85856.0,85812.0,0.00345731]
[1765998120844,0.05001839,85847.0,85822.0,0.50142]
[1765998121052,0.00858,85857.0,85827.0,0.50142]
[1765998121053,1.05001839,85856.0,85827.0,0.50142]
[1765998121253,2.87e-06,85847.0,85832.0,0.74661]
[1765998121584,2.87e-06,85847.0,85837.0,0.50142]
[1765998121718,2.87e-06,85847.0,85838.0,0.50142]
[1765998121923,2.87e-06,85847.0,85837.0,0.00161]
[1765998122126,2.87e-06,85847.0,85838.0,0.01864]
[1765998122532,2.87e-06,85847.0,85812.0,0.74661]
[1765998122533,0.00160287,85847.0,85812.0,0.74661]
[1765998122735,0.0907,85845.0,85817.0,0.50142]
[1765998122963,0.0907,85841.0,85817.0,1.24964]
[1765998123210,0.0907,85837.0,85817.0,1.24964]
[1765998123333,0.0907,85837.0,85820.0,0.74661]
[1765998123542,0.0907,85837.0,85821.0,0.74661]
[1765998123756,0.0907,85837.0,85836.0,0.00167372]
[1765998123959,0.0907,85837.0,85836.0,0.02031372]
[1765998124170,2.87e-06,85847.0,85836.0,0.02192372]
[1765998124506,1.0,85846.0,85819.0,0.50142]
[1765998124664,1.0,85845.0,85819.0,0.50142]
[1765998124867,1.0,85844.0,85820.0,0.01864]
[1765998125086,0.00161,85844.0,85821.0,1.24803]
[1765998125277,0.00161,85844.0,85820.0,0.01864]
[1765998125672,0.04293,85863.0,85820.0,0.01864]
[1765998125673,1.0,85852.0,85820.0,0.02025]
[1765998125902,1.0,85856.0,85827.0,0.74661]
[1765998126247,0.0907,85854.0,85830.0,0.50142]
[1765998126450,1.0,85853.0,85830.0,0.50303]
[1765998126650,0.0907,85852.0,85830.0,0.48785122]
[1765998126851,0.0907,85850.0,85831.0,0.74661]
[1765998127073,0.04453,85849.0,85831.0,0.00161]
[1765998127395,0.04453,85846.0,85831.0,0.00161]
[1765998128138,0.04453,85846.0,85832.0,0.01864]
[1765998128387,0.01518,85843.0,85831.0,0.00161]
[1765998128537,0.15188351,85850.0,85811.0,0.74661]
[1765998128538,0.0907,85839.0,85811.0,1.23825489]
[1765998128752,0.0907,85839.0,85812.0,0.01864]
[1765998128753,0.0907,85837.0,85812.0,0.01864]
[1765998128958,0.05078,85836.0,85812.0,0.01864]
[1765998129767,0.05078,85836.0,85813.0,0.01864]
[1765998130151,0.05078,85836.0,85813.0,0.01464]
[1765998130353,0.00105,85830.0,85800.0,0.011]
[1765998130553,1.0,85826.0,85801.0,0.091085]
[1765998130859,0.01828179,85822.0,85802.0,0.74318]
[1765998131577,1.79e-06,85822.0,85802.0,0.74318]
[1765998131775,0.14148,85831.0,85802.0,0.74318]
[1765998131977,0.14148,85831.0,85801.0,0.091085]
[1765998131978,0.06118351,85845.0,85811.0,0.74318]
[1765998132324,0.00161287,85845.0,85813.0,0.74318]
[1765998132577,0.00161287,85845.0,85816.0,0.45754103]
[1765998132578,0.06993,85844.0,85816.0,0.45754103]
[1765998132775,0.01623,85843.0,85816.0,1.20072103]
[1765998132998,0.01623,85841.0,85816.0,0.74318]
[1765998133191,0.01623,85841.0,85800.0,0.011]
[1765998133192,1.01623,85839.0,85801.0,0.74318]
[1765998133339,0.06888,85833.0,85803.0,0.74318]
[1765998133542,0.06888,85832.0,85803.0,0.74318]
[1765998133754,0.09231287,85832.0,85803.0,0.74318]
[1765998133955,0.15958,85830.0,85803.0,0.74318]
[1765998134152,0.15958,85828.0,85803.0,0.74318]
[1765998134364,0.15958,85827.0,85803.0,0.74318]
[1765998134562,0.16119287,85827.0,85803.0,0.74318]
[1765998134993,0.16119287,85827.0,85802.0,0.01864]
[1765998134994,0.08511,85826.0,85802.0,0.01864]
[1765998135171,0.06888,85823.0,85802.0,0.01864]